bitfinex/quotes_ETHUSD_20251017
["timestamp","ask_amount","ask_price","bid_price","bid_amount"]
[1760713517502,2.65061933,3772.8,3772.2,0.1703]
[1760713517666,2.65061933,3772.8,3772.1,2.65198082]
[1760713517667,2.65051912,3772.9,3772.1,0.001]
[1760713517862,0.2233,3773.0,3772.1,0.001]
[1760713518064,0.72911322,3773.0,3772.1,0.001]
[1760713518276,2.6509175,3772.3,3772.1,0.001]
[1760713518478,2.6509729,3772.2,3772.1,0.001]
[1760713518679,4.8331729,3772.2,3772.1,0.001]
[1760713519169,5.4667729,3772.2,3772.1,0.001]
[1760713519368,7.86003485,3772.2,3772.1,0.001]
[1760713519862,7.90624374,3772.2,3772.1,0.001]
[1760713520068,8.3221176,3772.2,3772.1,0.001]
[1760713521003,15.3042596,3772.2,3772.1,0.001]
[1760713521305,25.5230086,3772.2,3772.1,0.001]
[1760713521684,25.5230086,3772.2,3769.8,0.001]
[1760713521685,2.65240875,3770.2,3769.8,0.001]
[1760713521879,4.60539025,3769.9,3769.8,0.001]
[1760713522806,5.05739025,3769.9,3769.8,0.001]
[1760713523483,5.69099025,3769.9,3769.8,0.001]
[1760713523687,5.82522821,3769.9,3769.8,0.001]
[1760713524023,1.77423881,3769.9,3769.8,0.001]
[1760713524180,6.04576171,3769.9,3769.8,0.001]
[1760713525019,5.88327343,3769.9,3769.8,0.001]
[1760713525218,6.33077343,3769.9,3769.8,0.001]
[1760713525517,5.24967343,3769.9,3769.8,0.001]
[1760713525815,2.727,3769.8,3769.4,0.133]
[1760713526017,0.999,3769.8,3769.7,0.132]
[1760713526340,0.624375,3769.8,3769.7,3.09433098]
[1760713529020,0.41603124,3771.4,3769.7,0.4416]
[1760713529271,0.04622197,3771.3,3769.7,0.4416]
[1760713529563,0.41594075,3771.2,3769.8,2.65266061]
[1760713529748,0.41594075,3771.2,3771.1,2.65174617]
[1760713530063,0.4438,3772.1,3772.0,2.65111346]
[1760713530064,0.002,3772.1,3772.0,2.65111346]
[1760713530366,0.002,3772.1,3771.1,0.5978]
[1760713530367,0.4662,3772.1,3769.9,0.58379789]
[1760713530578,0.2184,3770.1,3769.1,0.1533]
[1760713530873,2.65287173,3769.5,3768.1,0.001]
[1760713531031,2.65287173,3769.5,3768.1,0.4426]
[1760713531227,1.728,3769.5,3768.1,0.4426]
[1760713531440,1.728,3769.5,3769.1,0.1533]
[1760713531659,1.728,3769.5,3768.1,0.001]
[1760713531850,1.728,3769.5,3769.4,2.80724211]
[1760713532166,0.04623332,3770.5,3769.8,2.65260425]
[1760713532367,1.77423332,3770.5,3769.8,2.65260425]
[1760713532668,0.04623332,3770.5,3769.5,2.67940044]
[1760713532866,2.65183643,3771.0,3770.2,2.6523266]
[1760713533072,1.9574,3771.1,3769.4,0.98863035]
[1760713533275,16.86456525,3771.6,3769.8,2.65261526]
[1760713533276,0.04622619,3770.8,3769.8,2.65261526]
[1760713533567,1.728,3771.2,3770.5,2.65210958]
[1760713533768,1.728,3771.2,3770.6,2.65208273]
[1760713533968,0.04622211,3771.3,3770.7,2.65201168]
[1760713534173,0.04622211,3771.3,3770.3,2.65224304]
[1760713534479,0.2184,3772.0,3770.4,0.4416]
[1760713534639,0.002,3772.1,3771.0,2.65174631]
[1760713534837,1.77421538,3771.9,3771.2,2.65162032]
[1760713535031,0.2207,3771.8,3771.1,2.65173468]
[1760713535269,2.65116915,3772.0,3771.2,2.65162108]
[1760713535488,0.002,3772.1,3771.1,2.65173084]
[1760713535489,4.3810459,3772.1,3771.1,2.65173084]
[1760713535693,0.002,3772.1,3771.0,0.1562]
[1760713536291,0.002,3772.1,3772.0,0.132]
[1760713536981,4.42725455,3772.1,3772.0,0.132]
[1760713537783,1.77621137,3772.1,3772.0,0.132]
[1760713538106,0.002,3772.1,3772.0,2.78311346]
[1760713538394,0.002,3772.1,3772.0,3.09271346]
[1760713538598,0.002,3772.1,3772.0,3.8256183]
[1760713538782,0.002,3772.5,3772.4,2.65083236]
[1760713539094,0.002,3772.5,3772.4,2.78283236]
[1760713539297,0.002,3772.5,3772.4,3.22443236]
[1760713539962,0.002,3772.5,3772.4,0.132]
[1760713540190,0.002,3772.5,3772.4,2.78283236]
[1760713540584,0.002,3772.5,3772.4,0.132]
[1760713540781,0.002,3772.5,3771.5,0.1683]
[1760713540982,0.002,3772.5,3771.2,0.1683]
[1760713540983,0.4431,3772.4,3771.2,0.1683]
[1760713541164,0.002,3772.5,3771.2,0.1683]
[1760713541570,0.002,3772.5,3771.4,2.65152981]
[1760713541815,2.65095222,3772.3,3771.2,0.1683]
[1760713542011,2.65095222,3772.3,3771.6,2.65139097]
[1760713542311,2.65112162,3772.0,3771.3,2.65159633]
[1760713542522,2.65112162,3772.0,3771.3,2.65159242]
[1760713542672,3.20471967,3772.3,3771.0,0.1562]
[1760713543020,3.20469796,3772.3,3771.2,2.65167585]
[1760713543313,0.002,3772.5,3771.2,0.02651675]
[1760713543606,0.002,3772.5,3771.1,0.1683]
[1760713543607,0.443,3772.5,3771.1,0.1683]
[1760713543905,0.002,3772.5,3772.4,2.65083236]
[1760713544069,0.002,3772.5,3772.4,3.11894068]
[1760713544269,0.002,3772.5,3772.4,4.32953111]
[1760713544470,0.002,3772.5,3772.4,4.30302279]
[1760713545072,0.0012,3772.5,3772.4,3.22782279]
[1760713545293,0.0012,3772.5,3771.9,0.4416]
[1760713545501,0.0012,3772.5,3772.4,2.65083236]
[1760713545703,0.0012,3772.5,3772.4,2.67734068]
[1760713545904,0.0012,3772.5,3772.4,2.65083236]
[1760713546280,0.0012,3772.5,3772.4,3.11894068]
[1760713546486,0.0012,3772.5,3772.4,3.25433068]
[1760713546696,0.0012,3772.5,3772.4,3.66942236]
[1760713546884,0.0012,3772.5,3772.4,3.22782236]
[1760713547201,0.0012,3772.5,3772.4,2.65083236]
[1760713547609,0.0012,3772.5,3772.4,3.09243236]
[1760713547810,0.0012,3772.5,3772.4,3.72603236]
[1760713548025,0.0012,3772.5,3772.4,5.45403236]
[1760713549626,1e-08,3772.9,3772.8,2.65055131]
[1760713549828,1e-08,3772.9,3772.8,10.39578032]
[1760713550032,1e-08,3772.9,3772.8,10.83460331]
[1760713550730,1e-08,3772.9,3772.8,10.96660331]
[1760713551896,0.002,3773.3,3773.2,15.26797732]
[1760713552091,0.4548,3776.1,3775.7,2.64846514]
[1760713552317,0.4548,3776.1,3775.0,2.64896796]
[1760713552519,0.4548,3776.1,3775.7,2.64846753]
[1760713552724,0.4548,3776.1,3775.4,2.64872122]
[1760713552905,0.04616775,3776.3,3775.2,2.64886628]
[1760713553118,0.04616775,3776.3,3775.1,0.4270968]
[1760713553320,0.50606775,3776.3,3775.1,0.1622]
[1760713553521,0.50606775,3776.3,3775.4,2.64871794]
[1760713553721,0.50606775,3776.3,3775.2,0.1622]
[1760713553932,0.2264,3775.3,3774.2,0.1562]
[1760713554247,0.2264,3775.3,3774.1,0.1562]
[1760713554409,2.64886628,3775.2,3774.2,2.64956812]
[1760713554734,0.5983904,3775.2,3773.9,2.64977874]
[1760713554933,0.2264,3775.3,3774.1,0.1562]
[1760713555100,2.87525786,3775.3,3774.1,0.1562]
[1760713555296,2.87525786,3775.3,3766.6,7.56170476]
[1760713555297,2.64905368,3775.0,3773.6,1.728]
[1760713555518,2.64905368,3775.0,3773.1,2.80362185]
[1760713555519,0.4674,3774.9,3773.1,0.1533]
[1760713555720,0.4674,3774.9,3773.0,2.65037616]
[1760713555721,0.6336,3774.8,3773.0,2.65037616]
[1760713556025,1.728,3774.4,3772.4,2.65078419]
[1760713556225,2.65009202,3773.5,3772.2,0.1533]
[1760713556421,0.2207,3773.4,3772.7,2.65056609]
[1760713556763,0.2207,3773.4,3772.7,2.65055401]
[1760713556919,2.87086533,3773.4,3772.6,2.65068221]
[1760713557121,0.2207,3773.4,3772.5,2.65075109]
[1760713557321,0.2264,3772.6,3771.3,0.1622]
[1760713557767,0.2264,3772.6,3771.5,2.3616]
[1760713557925,0.2264,3772.6,3772.2,2.65090608]
[1760713558322,1.728,3773.3,3772.4,2.65078577]
[1760713558550,2.65041501,3773.0,3771.7,2.65132433]
[1760713558722,0.2264,3772.9,3772.2,2.65091556]
[1760713558923,0.2264,3772.9,3772.3,2.65089517]
[1760713559142,0.2264,3772.9,3771.6,0.42518]
[1760713559328,0.2264,3772.9,3772.0,2.65109472]
[1760713559550,0.2264,3772.9,3772.1,2.65101837]
[1760713559551,2.65061153,3772.8,3772.1,2.65101837]
[1760713559748,2.87690236,3772.9,3772.2,2.65097087]
[1760713560125,2.65055373,3772.8,3771.6,0.42518]
[1760713560329,0.4671,3772.8,3771.5,4.37946493]
[1760713560574,0.0461973,3773.3,3772.9,2.65043929]
[1760713560775,3.11737204,3773.2,3772.1,2.65097317]
[1760713560980,0.0461973,3773.3,3771.4,0.6336]
[1760713561195,0.0461973,3773.3,3771.8,2.65119038]
[1760713561196,0.2264,3772.2,3771.8,2.65119038]
[1760713561483,0.2264,3772.2,3770.9,0.1562]
[1760713561484,0.4671,3772.1,3770.9,0.1562]
[1760713561669,0.2264,3772.2,3771.1,2.65174617]
[1760713561867,0.2264,3772.2,3771.7,2.65126311]
[1760713562069,0.4382,3772.1,3770.9,2.94892529]
[1760713562290,0.4382,3772.0,3770.1,2.65244953]
[1760713562585,2.65190726,3770.9,3769.9,2.65252491]
[1760713562783,0.6612,3770.8,3769.9,2.65259025]
[1760713563079,0.4382,3770.7,3769.4,0.001]
[1760713563284,0.223,3769.9,3769.4,0.001]
[1760713563459,0.223,3769.9,3769.8,0.133]
[1760713563658,1.728,3770.7,3769.8,0.133]
[1760713563846,0.223,3770.8,3769.8,0.133]
[1760713564044,0.4382,3770.7,3770.6,0.132]
[1760713564247,1.728,3770.5,3770.4,0.132]
[1760713564487,2.1662,3770.5,3770.4,0.132]
[1760713564649,0.223,3770.8,3770.7,2.65202747]
[1760713564849,0.4382,3770.8,3770.7,0.132]
[1760713565090,2.1662,3770.8,3770.7,0.132]
[1760713565471,4.81815714,3770.8,3770.7,0.132]
[1760713565680,2.6521991,3770.5,3769.8,0.001]
[1760713565854,1.728,3770.7,3770.4,0.132]
[1760713566052,2.6520978,3770.6,3770.4,0.132]
[1760713566256,1.728,3770.7,3769.9,2.65257887]
[1760713566454,1.728,3770.7,3770.5,0.132]
[1760713566983,1.728,3770.7,3769.8,0.001]
[1760713566984,2.1662,3770.6,3769.8,0.001]
[1760713567185,2.65218346,3770.5,3769.8,0.001]
[1760713567391,2.65223381,3770.5,3770.3,0.132]
[1760713567602,2.65223848,3770.4,3770.3,0.132]
[1760713567764,2.65259025,3769.9,3769.8,0.001]
[1760713567948,0.48825902,3769.9,3769.8,0.133]
[1760713568157,0.6333,3770.7,3769.8,0.133]
[1760713568364,1.728,3770.5,3769.8,0.133]
[1760713568687,0.223,3771.9,3771.3,2.65160554]
[1760713568850,0.223,3771.9,3770.2,0.163]
[1760713569048,0.04621702,3771.7,3770.3,0.46642308]
[1760713569387,0.04621702,3771.7,3770.3,0.4399]
[1760713569547,0.04621702,3771.7,3770.4,2.65223848]
[1760713569748,0.2264,3772.2,3770.6,2.6520978]
[1760713570058,2.65104318,3772.1,3771.1,2.65173911]
[1760713570389,2.65104318,3772.1,3770.3,2.65226251]
[1760713570390,0.223,3771.2,3770.3,2.65224004]
[1760713570687,0.223,3771.2,3769.9,2.65255434]
[1760713570867,0.223,3771.2,3770.4,2.65222638]
[1760713570868,2.6517859,3771.1,3770.4,2.65222638]
[1760713571061,0.99083912,3771.1,3769.8,0.001]
[1760713571263,0.223,3771.2,3769.8,0.4409]
[1760713571585,0.04621953,3771.6,3769.9,2.65259025]
[1760713571883,0.6336,3771.5,3769.8,3.09351031]
[1760713572084,0.4382,3771.5,3769.8,0.4409]
[1760713572290,2.65181577,3771.1,3770.3,2.65225562]
[1760713572451,0.4382,3771.5,3770.9,2.65186417]
[1760713572651,0.4382,3771.5,3770.2,0.163]
[1760713572888,0.2264,3772.2,3770.4,0.6336]
[1760713573189,0.2726092,3772.2,3770.5,0.02652168]
[1760713573367,0.2726092,3772.2,3770.7,2.65202747]
[1760713573564,0.2726092,3772.2,3770.6,2.6520978]
[1760713573887,0.0462092,3772.2,3771.8,2.65124039]
[1760713574093,0.0462092,3772.2,3772.1,2.65104318]
[1760713574334,0.4402,3773.3,3771.7,0.02651324]
[1760713574451,0.002,3773.3,3772.8,2.65049334]
[1760713574797,0.002,3773.3,3773.2,2.65027032]
[1760713575004,0.002,3773.3,3772.7,2.65060865]
[1760713575154,2.6502856,3773.2,3772.5,2.65075041]
[1760713575359,1.73,3773.3,3772.6,2.65063822]
[1760713575696,0.002,3773.3,3771.9,2.65118375]
[1760713575988,0.002,3773.3,3772.1,2.65104318]
[1760713576157,0.002,3773.3,3773.0,2.65034684]
[1760713576358,0.002,3773.3,3773.2,2.65027032]
[1760713576760,0.002,3773.3,3772.8,2.65048207]
[1760713576961,0.002,3773.3,3773.2,2.65027032]
[1760713577792,0.002,3773.3,3773.2,4.25383415]
[1760713577959,0.002,3773.3,3773.2,3.18033415]
[1760713578495,0.002,3773.3,3773.2,0.132]
[1760713578656,0.002,3773.3,3773.2,8.96815032]
[1760713578860,0.002,3773.3,3773.2,5.45177032]
[1760713579191,0.002,3773.3,3773.2,8.20614932]
[1760713579395,0.002,3773.7,3773.6,4.3779894]
[1760713579689,0.002,3773.7,3773.6,5.44938834]
[1760713579892,0.223,3775.6,3775.3,2.64879612]
[1760713580090,0.223,3775.6,3774.2,2.64950513]
[1760713580091,0.85373043,3776.1,3775.5,2.6486558]
[1760713580277,0.04616947,3775.9,3774.7,0.1601]
[1760713580658,0.04616947,3775.9,3775.1,2.64892318]
[1760713580868,0.4382,3775.8,3774.2,0.4399]
[1760713581190,0.4382,3775.8,3774.3,2.64949792]
[1760713581388,0.04616947,3775.9,3775.5,2.64864922]
[1760713581575,0.04616947,3775.9,3775.4,2.64872596]
[1760713581782,0.41540969,3776.6,3775.5,0.02648655]
[1760713581999,0.50436388,3776.7,3776.0,2.64826282]
[1760713582198,0.50436388,3776.7,3775.3,0.1592]
[1760713582400,2.64807557,3776.4,3774.9,0.1592]
[1760713582715,2.64823127,3776.2,3774.9,0.1592]
[1760713583013,1.728,3775.9,3775.2,2.64880201]
[1760713583216,0.2356,3775.8,3774.9,0.1592]
[1760713583512,2.22996668,3776.3,3774.9,0.1592]
[1760713583721,0.2253,3776.8,3775.0,1.10049006]
[1760713583920,0.4558,3777.3,3775.6,2.64858565]
[1760713584077,0.223,3778.1,3775.6,2.64858565]
[1760713584078,0.223,3777.4,3776.7,2.64775711]
[1760713584277,0.223,3777.4,3775.7,0.90454372]
[1760713584278,0.223,3777.4,3776.4,0.1567]
[1760713584530,0.223,3777.4,3776.7,2.64776327]
[1760713584691,1.728,3777.2,3776.5,2.64794664]
[1760713584890,0.6765,3777.4,3776.0,0.1567]
[1760713585191,0.223,3777.4,3776.1,2.80493495]
[1760713585421,0.2253,3777.8,3776.1,1.15810332]
[1760713585724,0.2253,3777.8,3777.2,2.64740568]
[1760713586081,0.2253,3777.8,3777.0,2.64758828]
[1760713586082,0.2253,3777.8,3776.3,2.6480498]
[1760713586284,1.9533,3777.8,3777.2,2.64745288]
[1760713586517,0.2253,3777.8,3776.1,0.5971]
[1760713586732,2.64723839,3777.6,3776.1,0.5971]
[1760713586887,2.64713089,3777.7,3776.7,2.64780129]
[1760713587231,2.64713089,3777.7,3776.2,2.98837516]
[1760713587232,0.4512,3777.7,3776.5,2.6478993]
[1760713587383,2.64737331,3777.4,3776.6,2.64782707]
[1760713587579,1.728,3777.5,3776.7,2.64778251]
[1760713587808,0.2253,3777.8,3776.2,0.46688164]
[1760713588017,0.223,3778.1,3777.5,2.64718641]
[1760713588332,0.2276,3780.0,3777.5,0.26471864]
[1760713588479,1.8643322,3780.4,3779.0,0.1567]
[1760713588682,1.4492,3780.4,3779.1,0.6336]
[1760713588934,1.4492,3780.4,3779.1,0.5164591]
[1760713589076,1.4492,3780.4,3779.2,2.64604732]
[1760713589413,0.4403,3780.3,3779.1,2.64613267]
[1760713589716,0.4403,3780.3,3779.4,2.64586426]
[1760713589921,2.64536343,3780.2,3779.3,2.64597729]
[1760713590080,0.48641153,3780.3,3779.0,0.1567]
[1760713590417,2.64543266,3780.1,3778.1,0.4404]
[1760713590624,2.64608499,3779.2,3778.2,2.64670539]
[1760713590912,2.64607158,3779.2,3778.1,0.4404]
[1760713591104,2.64607158,3779.2,3778.2,2.64670031]
[1760713591305,2.64585262,3779.5,3778.1,0.4404]
[1760713591521,0.72492899,3779.5,3778.5,2.64649283]
[1760713591728,0.72492899,3779.5,3778.0,0.1592]
[1760713591729,0.4382,3779.5,3778.0,0.1592]
[1760713591925,0.4382,3779.5,3777.3,2.64738568]
[1760713591926,2.64616217,3779.1,3778.1,2.64677328]
[1760713592099,3.08415318,3779.4,3778.3,2.64668323]
[1760713592422,0.50418532,3779.3,3777.6,0.4404]
[1760713592606,0.6336,3779.5,3777.1,0.4404]
[1760713592926,1.728,3779.2,3777.3,2.19487393]
[1760713593220,1.728,3779.2,3777.2,2.80756049]
[1760713593221,2.64627047,3779.0,3777.9,2.64694446]
[1760713593420,2.64627047,3779.0,3777.5,0.6336]
[1760713593421,0.2356,3778.9,3778.2,2.64670811]
[1760713593594,2.64592263,3779.4,3778.3,2.64663878]
[1760713593794,2.93816902,3779.3,3778.1,0.16]
[1760713593999,0.2356,3778.2,3776.2,0.4404]
[1760713594435,2.64718281,3777.7,3776.7,2.64780908]
[1760713594634,2.6472382,3777.6,3776.8,2.6477231]
[1760713594819,0.4618,3777.9,3776.5,0.1567]
[1760713595132,2.64757363,3777.1,3776.1,2.80493361]
[1760713595290,1.728,3777.7,3776.1,0.45286336]
[1760713595625,2.64725347,3777.5,3776.4,2.64796755]
[1760713595806,0.4593,3777.6,3776.1,0.1567]
[1760713596008,2.64746684,3777.2,3776.2,2.64816482]
[1760713596218,2.6474435,3777.3,3776.1,0.1567]
[1760713596396,0.4593,3777.6,3776.4,2.64795647]
[1760713596601,0.98426498,3777.6,3776.5,2.64790093]
[1760713596802,2.64739397,3777.3,3776.5,2.647891]
[1760713597018,2.64733332,3777.4,3776.4,2.6480094]
[1760713597219,0.4593,3777.6,3776.1,0.1567]
[1760713597442,1.728,3777.8,3776.2,1.074]
[1760713597735,0.2356,3778.2,3776.2,1.074]
[1760713597736,1.9636,3778.2,3776.2,1.074]
[1760713597952,1.1805869,3778.1,3776.2,2.64816482]
[1760713598172,2.64719212,3777.6,3776.3,0.02648094]
[1760713598370,0.0461387,3778.0,3776.2,2.64816482]
[1760713598504,2.64748311,3777.2,3776.1,0.1567]
[1760713598711,2.6475149,3777.2,3776.4,2.64802403]
[1760713598944,0.4593,3777.4,3777.1,0.132]
[1760713599250,2.64746372,3777.2,3777.1,0.132]
[1760713599447,2.64765427,3777.0,3775.5,0.4404]
[1760713599658,0.4593,3777.2,3776.9,0.132]
[1760713599836,0.04614376,3777.7,3777.1,0.132]
[1760713600007,0.04614376,3777.7,3777.3,2.64735841]
[1760713600208,0.04614376,3777.7,3776.5,0.1567]
[1760713600209,0.04614376,3777.7,3777.6,0.132]
[1760713600411,0.41520092,3778.4,3777.6,0.132]
[1760713600612,0.25153039,3779.0,3778.9,0.132]
[1760713600835,0.25153039,3779.0,3777.7,0.02647113]
[1760713600836,0.04613039,3779.0,3778.8,2.64628329]
[1760713601043,3.33485013,3779.6,3778.9,0.132]
[1760713601044,0.689,3779.6,3778.9,0.132]
[1760713601246,4.37385262,3779.5,3779.4,0.132]
[1760713601444,5.51425013,3779.5,3779.4,0.132]
[1760713601660,3.78625013,3779.5,3779.4,0.132]
[1760713601967,0.04612246,3779.6,3779.4,0.132]
[1760713602471,0.2127,3779.8,3779.4,0.132]
[1760713602837,0.2127,3779.8,3779.3,2.64592282]
[1760713602838,0.2127,3779.8,3779.7,0.132]
[1760713603040,0.002,3779.8,3779.7,0.132]
[1760713603274,0.4514,3779.8,3777.8,0.6336]
[1760713603476,0.002,3779.8,3779.2,2.64600582]
[1760713603677,0.002,3779.8,3778.3,0.6336]
[1760713603868,0.002,3779.8,3778.9,2.64625821]
[1760713604040,0.002,3779.8,3779.2,2.64603526]
[1760713604241,0.002,3779.8,3778.4,0.7366]
[1760713604575,0.002,3779.8,3778.4,2.4646]
[1760713604777,0.002,3779.8,3777.1,2.64747073]
[1760713604778,0.2356,3779.7,3777.1,2.64747073]
[1760713605075,2.64595508,3779.4,3777.9,2.64693135]
[1760713605273,2.64600734,3779.3,3778.6,2.64644398]
[1760713605475,2.64594205,3779.4,3778.0,1.728]
[1760713605642,2.64594731,3779.4,3778.6,2.6464343]
[1760713605843,0.2356,3779.7,3779.2,2.64605748]
[1760713606052,0.2356,3779.7,3778.7,2.64635343]
[1760713606251,2.64586294,3779.5,3778.2,0.6024]
[1760713606452,0.4271,3779.5,3778.2,0.16]
[1760713606654,0.002,3779.8,3778.3,0.66006692]
[1760713606857,0.002,3779.8,3778.4,0.3466879]
[1760713607183,2.86551153,3779.8,3778.4,0.7890879]
[1760713607481,2.64576823,3779.7,3778.3,2.64669295]
[1760713607687,2.64581962,3779.6,3778.8,2.64628019]
[1760713607995,2.64615229,3779.1,3777.7,2.64711179]
[1760713608159,0.2178,3778.9,3776.8,0.4424]
[1760713608488,0.4532,3778.8,3777.0,2.64760294]
[1760713608674,0.4532,3778.8,3776.8,0.4424]
[1760713608675,0.6336,3778.5,3776.2,0.4424]
[1760713608876,0.4532,3778.4,3776.2,0.4424]
[1760713609047,1.728,3778.2,3776.5,0.001]
[1760713609246,2.64736687,3777.4,3776.5,0.001]
[1760713609475,2.64690312,3778.0,3776.5,0.001]
[1760713609674,0.2178,3777.3,3776.6,2.6478286]
[1760713609878,1.728,3777.7,3776.6,2.67436318]
[1760713610083,2.86486207,3777.8,3776.6,2.67436318]
[1760713610084,1.728,3777.5,3776.6,0.02647884]
[1760713610286,0.2178,3777.8,3776.5,0.001]
[1760713610450,0.04614205,3777.9,3777.3,2.64737093]
[1760713610650,0.04614205,3777.9,3776.5,0.4434]
[1760713610857,0.04614205,3777.9,3776.6,0.02647884]
[1760713611174,1.728,3778.2,3777.6,2.64713173]
[1760713611378,2.64688312,3778.1,3777.2,2.6473956]
[1760713611677,1.9458,3778.3,3776.5,2.64895377]
[1760713611678,1.728,3777.8,3776.5,2.64895377]
[1760713612010,1.728,3778.1,3776.6,0.436]
[1760713612187,0.2178,3778.3,3776.6,0.436]
[1760713612375,2.64706649,3777.8,3776.5,0.001]
[1760713612575,2.184,3778.2,3777.3,2.64737357]
[1760713612779,1.728,3778.0,3776.6,2.64788434]
[1760713612974,3.38910113,3778.2,3776.5,0.001]
[1760713612975,0.04613555,3778.2,3776.7,3.11029236]
[1760713613289,2.64616075,3779.1,3776.5,0.001]
[1760713613290,0.6738,3778.9,3777.9,0.132]
[1760713613589,1.728,3778.5,3777.2,0.1601]
[1760713613791,0.26393055,3778.9,3778.1,2.64678545]
[1760713613957,2.6465718,3778.5,3777.2,2.80755665]
[1760713614157,1.99193055,3778.9,3777.3,0.38771567]
[1760713614354,1.99193055,3778.9,3775.8,2.64837628]
[1760713614355,2.64724689,3777.6,3776.6,2.64788434]
[1760713614595,0.2267,3777.7,3776.0,0.1567]
[1760713614758,0.456,3777.5,3776.6,2.64788434]
[1760713614961,2.64754124,3777.1,3776.3,2.64807988]
[1760713615159,2.64769593,3776.9,3776.2,2.64814655]
[1760713615459,2.64732355,3777.4,3776.0,0.1567]
[1760713615685,0.456,3777.5,3776.1,0.02648234]
[1760713615896,2.64732355,3777.4,3776.6,2.64786679]
[1760713616070,4.37536594,3777.4,3776.6,2.91272536]
[1760713616274,2.64666372,3777.2,3776.2,2.64811065]
[1760713616478,2.64746931,3777.2,3776.5,2.64890501]
[1760713616781,0.456,3777.6,3776.5,2.64894013]
[1760713617008,1.728,3777.5,3776.9,2.64763342]
[1760713617194,1.728,3777.7,3776.5,0.001]
[1760713617400,2.64749346,3777.2,3776.5,0.001]
[1760713617571,0.456,3777.5,3776.5,0.001]
[1760713617773,0.456,3777.5,3776.5,2.64891505]
[1760713618001,2.184,3777.5,3776.5,0.001]
[1760713618201,0.2267,3776.6,3776.5,0.001]
[1760713618608,0.6827,3776.6,3776.5,0.001]
[1760713618804,3.33058434,3776.6,3776.5,0.001]
[1760713619006,5.05858434,3776.6,3776.5,0.001]
[1760713619222,2.4107,3776.6,3776.5,0.001]
[1760713619563,4.37588434,3776.6,3776.5,0.001]
[1760713619743,5.29214277,3776.6,3776.5,0.001]
[1760713619874,0.456,3776.6,3776.5,0.001]
[1760713620403,0.04614918,3777.0,3776.5,0.001]
[1760713620611,0.2267,3777.8,3776.5,0.437]
[1760713620822,0.2267,3778.1,3777.6,2.64713385]
[1760713621114,0.04613782,3778.1,3777.2,0.1601]
[1760713621317,0.456,3778.4,3777.2,0.48446514]
[1760713621522,0.2267,3778.5,3777.9,2.64692794]
[1760713621679,0.2267,3778.5,3777.2,0.1601]
[1760713621872,0.2267,3779.5,3778.4,0.1583]
[1760713622074,0.2198,3779.8,3779.1,2.64610175]
[1760713622278,0.2198,3779.8,3779.3,2.64599264]
[1760713622279,0.002,3779.8,3779.3,2.64599264]
[1760713623010,2.64529816,3780.3,3779.3,2.64599264]
[1760713623213,0.2267,3779.9,3779.3,2.64599264]
[1760713623513,0.77071225,3780.4,3779.3,2.77799264]
[1760713623717,2.87228008,3779.9,3779.3,0.132]
[1760713624092,0.4562,3779.4,3779.3,0.132]
[1760713624308,3.10212263,3779.4,3779.3,0.132]
[1760713624627,5.40491383,3779.4,3779.3,0.132]
[1760713624916,1.73,3779.4,3779.3,0.132]
[1760713625118,4.37592263,3779.4,3779.3,0.132]
[1760713625318,4.83012263,3779.4,3779.3,0.132]
[1760713625524,0.002,3779.4,3779.3,0.132]
[1760713625738,2.64792263,3779.4,3779.3,0.132]
[1760713625899,0.4562,3779.4,3779.3,0.132]
[1760713626099,0.002,3779.4,3779.3,0.132]
[1760713626298,0.002,3779.4,3779.3,2.77799264]
[1760713626637,0.002,3779.4,3779.3,4.45129021]
[1760713626926,0.002,3779.4,3779.3,3.79123029]
[1760713627748,0.002,3779.4,3779.3,3.33623029]
[1760713628055,0.002,3779.4,3779.3,0.69023765]
[1760713628212,0.002,3779.4,3779.3,0.132]
[1760713628847,3.09982263,3779.4,3779.3,0.132]
[1760713629149,2.64792263,3779.4,3779.3,0.132]
[1760713629334,3.09982263,3779.4,3779.3,0.132]
[1760713629507,1.02846772,3779.4,3778.3,2.64667223]
[1760713629701,2.64599872,3779.3,3779.0,0.132]
[1760713629939,0.4519,3779.3,3778.9,0.132]
[1760713630156,0.4519,3779.3,3777.6,2.64712208]
[1760713630451,0.002,3779.4,3778.5,0.132]
[1760713630452,2.64648282,3778.6,3778.5,0.132]
[1760713630657,2.64655286,3778.5,3777.0,2.64753577]
[1760713630889,2.64655286,3778.5,3776.5,0.456]
[1760713630890,2.64683306,3778.1,3778.0,0.132]
[1760713631055,2.64702506,3777.9,3777.8,0.132]
[1760713631204,3.32332506,3777.9,3777.8,0.132]
[1760713631411,2.87592506,3777.9,3777.8,0.132]
[1760713631710,0.04613933,3778.3,3777.8,0.132]
[1760713631911,0.4464,3778.2,3776.5,0.001]
[1760713632137,2.64708432,3777.8,3777.7,0.132]
[1760713632302,2.64688927,3778.1,3777.9,0.132]
[1760713632504,0.04613933,3778.3,3777.9,0.132]
[1760713632705,0.04613933,3778.3,3777.1,0.1601]
[1760713632706,0.23,3779.0,3777.4,0.455]
[1760713632904,0.4484,3779.4,3777.6,2.64718339]
[1760713632905,0.046127,3779.1,3777.6,2.64718339]
[1760713633149,0.046127,3779.1,3779.0,2.80450269]
[1760713633313,0.002,3779.4,3779.3,2.64599264]
[1760713633515,0.002,3779.4,3779.3,2.67245256]
[1760713633734,0.002,3779.4,3779.3,3.10099264]
[1760713635341,0.002,3779.4,3779.3,3.12745256]
[1760713635640,0.002,3779.4,3779.3,4.59239645]
[1760713635807,0.002,3779.4,3779.3,3.95879645]
[1760713636221,0.002,3779.4,3779.3,3.50379645]
[1760713636420,0.002,3779.4,3779.3,2.64599264]
[1760713636864,0.002,3779.4,3778.6,0.1583]
[1760713637069,0.002,3779.4,3779.2,2.64606048]